Cogmind - Beta 12 @@@ ROGUE MODE // 2023.10.07 @ 15:22:51 Player: Figgis Result: Destroyed by G-47 Trooper with Particle Gun Performance ------------- Evolutions (2) 1000 Regions Visited (5) 1000 Robots Destroyed (28) 140 Value Destroyed (967) 967 Prototype IDs (1) 20 Alien Tech Used (0) 0 Bonus (300) 300 TOTAL SCORE: 3427 Bonus ------- Aligned with FarCom 300 Cogmind --------- Core Integrity 0/550 Matter 139/300 Energy 240/240 System Corruption 0% Temperature Danger (412) Movement Walking (195) Ox1 Location -8/Materials Parts ------- > --- POWER (1) -------- Nuclear Core > --- PROPULSION (3) --- Aluminum Leg Titanium Leg > --- UTILITY (5) ------ Large Storage Unit Visual Processing Unit Advanced Targeting Computer > --- WEAPON (2) ------- Ion Cannon > --- INVENTORY (15) --- High-capacity Matter Pod (200) Army-in-a-Box Particle Gun Grenade Launcher Peak State ------------ > --- POWER ------------ Nuclear Core > --- PROPULSION ------- Aluminum Leg Aluminum Leg Titanium Leg > --- UTILITY ---------- Large Storage Unit Visual Processing Unit Advanced Targeting Computer Reaction Control System > --- WEAPON ----------- Ion Cannon Grenade Launcher > --- INVENTORY -------- Advanced Treads High-capacity Matter Pod Army-in-a-Box Particle Gun Particle Gun [Rating: 27] Favorites ----------- Power Cooled Ion Engine Engine Cooled Ion Engine Power Core Nuclear Core Propulsion Light Treads Treads Light Treads Leg Aluminum Leg Utility Visual Processing Unit Device Reaction Control System Storage Large Storage Unit Processor Visual Processing Unit Weapon Light Cannon Energy Gun Medium Laser Energy Cannon Beam Cannon Ballistic Cannon Light Cannon Launcher Grenade Launcher Build | -11 -10 -10 -10 -9 -8 ------- Run | Jun Mat Min Exi Min Mat Slots Evolved 4 | . . . . . 4 Power . | . . . . . . Propulsion 1 | . . . . . 1 Utility 3 | . . . . . 3 Weapon . | . . . . . . Parts Attached 33 | 6 5 2 . . 20 Power 5 | 1 1 . . . 3 Engine 4 | 1 1 . . . 2 Core 1 | . . . . . 1 Reactor . | . . . . . . Propulsion 9 | 2 . . . . 7 Treads 4 | 2 . . . . 2 Leg 5 | . . . . . 5 Wheel . | . . . . . . Hover . | . . . . . . Flight . | . . . . . . Utility 7 | 1 2 2 . . 2 Device 1 | . . . . . 1 Storage 4 | 1 1 2 . . . Processor 2 | . 1 . . . 1 Hackware . | . . . . . . Protection . | . . . . . . Artifact . | . . . . . . Weapon 12 | 2 2 . . . 8 Energy Gun 8 | 2 . . . . 6 Energy Cannon 2 | . 1 . . . 1 Ballistic Gun . | . . . . . . Ballistic Cannon 1 | . 1 . . . . Launcher 1 | . . . . . 1 Special Weapon . | . . . . . . Impact Weapon . | . . . . . . Slashing Weapon . | . . . . . . Piercing Weapon . | . . . . . . Special Melee Weapon . | . . . . . . Unidentified Prototypes 1 | . 1 . . . . Parts Lost 17 | . . . . . 17 Power 3 | . . . . . 3 Propulsion 6 | . . . . . 6 Utility 1 | . . . . . 1 Weapon 7 | . . . . . 7 Highest Loss Streak 11 | . . . . . 11 To Critical Strikes . | . . . . . . Average Slot Usage (%) 93 | . 97 100 100 100 69 Engine 11 | . 14 14 14 14 3 Core 1 | . . . . . 5 Treads 23 | . 28 28 28 28 4 Leg 2 | . . . . . 11 Storage 13 | . 14 14 14 14 9 Processor 14 | . 11 14 14 14 17 Energy Gun 5 | . 15 . . . 5 Energy Cannon 8 | . 4 14 14 14 2 Ballistic Cannon 9 | . 7 14 14 14 1 Naked Turns . | . . . . . . Heaviest Build 36 | 14 24 34 34 34 36 Greatest Support 40 | 40 40 40 40 40 40 Greatest Overweight (x) 10 | 3 . . . . 10 Average Overweight (x) . | . . . . . . Largest Inventory Capacity 15 | 8 10 15 15 15 15 Average Capacity 12 | 7 8 14 15 15 15 Most Carried 15 | 6 8 10 15 15 15 Average Carried 10 | 2 6 8 12 14 9 Final Capacity 15 | 8 10 15 15 15 15 Final Carried 15 | 2 8 9 15 15 9 Class Distribution -------------------- 100% | Mutant Dominant Class ---------------- Mutant | -10/Materials Mutant | -10/Mines Mutant | -10/Exiles Mutant | -9/Mines Mutant | -8/Materials Resources | -11 -10 -10 -10 -9 -8 ----------- Run | Jun Mat Min Exi Min Mat Matter Collected 562 | 252 160 20 32 51 47 Remotely . | . . . . . . Salvage Created 968 | . 172 . . 144 652 Parts 49 | . 12 . . 14 23 Haulers Intercepted 1 | . 1 . . . . Recyclers Shooed 1 | . . . . . 1 Parts Field Recycled . | . . . . . . Retrieved Matter . | . . . . . . Parts Self-Destructed . | . . . . . . Prevented . | . . . . . . Kills | -11 -10 -10 -10 -9 -8 ------- Run | Jun Mat Min Exi Min Mat Combat Hostiles Destroyed 23 | . 3 . . 6 14 Guns 9 | . 2 . . . 7 Cannons 9 | . 1 . . 6 2 AOE 5 | . . . . . 5 Classes Destroyed 9 | . 3 . . 1 5 Builder 1 | . . . . . 1 Hauler 1 | . 1 . . . . Recycler 2 | . . . . . 2 Watcher 1 | . 1 . . . . Swarmer 3 | . . . . 3 . Grunt 16 | . 3 . . 3 10 Duelist 1 | . . . . . 1 Sentry 2 | . . . . . 2 Hunter 1 | . . . . . 1 Best Kill Streak 6 | . 2 . . 3 6 Combat Bots Only 5 | . 2 . . 3 5 Max Kills in Single Turn 2 | . 1 . . 1 2 Gunslinging . | . . . . . . Exploded 1 | . . . . . 1 Melee . | . . . . . . Uniques/NPCs Destroyed . | . . . . . . Combat | -11 -10 -10 -10 -9 -8 -------- Run | Jun Mat Min Exi Min Mat Damage Taken 2717 | . 190 . . 148 2379 Core 595 | . 25 . . 18 552 Absorbed by Shields . | . . . . . . Core Remaining (%) 91 | 100 . . . 82 . Volleys Fired 75 | . 18 . . 9 48 Largest 2 | . 2 . . 2 2 Hottest 130 | . 100 . . 95 130 Shots Fired 121 | . 34 . 1 18 68 Gun 58 | . 17 . . . 41 Cannon 55 | . 17 . 1 18 19 Launcher 8 | . . . . . 8 Special . | . . . . . . Kinetic 23 | . 11 . . 9 3 Thermal 90 | . 23 . 1 9 57 Explosive 8 | . . . . . 8 Electromagnetic . | . . . . . . Robot Hit Streak 12 | . 5 . . 9 12 Robot Miss Streak 3 | . 2 . . 3 3 Penetration Max . | . . . . . . Secondary Targets . | . . . . . . Shots Hit Robots 86 | . 21 . . 11 54 Core Hits 57 | . 9 . . 6 42 Critical Kills . | . . . . . . Critical Parts Destroyed . | . . . . . . Critical Strikes 3 | . . . . 1 2 Burn 1 | . . . . . 1 Blast 2 | . . . . 1 1 Melee Attacks . | . . . . . . Impact . | . . . . . . Slashing . | . . . . . . Piercing . | . . . . . . Sneak Attacks . | . . . . . . Combat Hostiles . | . . . . . . Follow-up Attacks . | . . . . . . Damage Inflicted 1961 | . 315 . . 193 1453 Guns 698 | . 139 . . . 559 Cannons 610 | . 172 . . 193 245 Explosions 648 | . . . . . 648 Melee . | . . . . . . Ramming 5 | . 4 . . . 1 Kinetic 223 | . 121 . . 70 32 Thermal 1085 | . 190 . . 123 772 Explosive 648 | . . . . . 648 Electromagnetic . | . . . . . . Impact . | . . . . . . Slashing . | . . . . . . Piercing . | . . . . . . Highest Corruption 1 | . 1 1 1 1 . Average Corruption 1 | . 1 1 1 1 . Corruption Purged . | . . . . . . Corruption Blocked . | . . . . . . Effects 13 | . 3 2 3 5 . Matter Fused 2 | . . . . 2 . Heat Flow Errors 3 | . 1 1 1 . . Energy Discharges 3 | . 1 . . 2 . Data Loss (minor) 4 | . 1 1 1 1 . Misfires 1 | . . . 1 . . Overload Shots . | . . . . . . Overflow Damage 40 | . . . . 15 25 Projectiles 15 | . . . . 15 . Explosions 25 | . . . . . 25 Melee . | . . . . . . Knockbacks 2 | . 1 . . . 1 Impact . | . . . . . . Kinetic 2 | . 1 . . . 1 Secondary . | . . . . . . Self-Inflicted Damage 40 | . . . . . 40 Shots 2 | . . . . . 2 Rammed 1 | . 1 . . . . Targets Rammed 2 | . 1 . . . 1 Kicked 1 | . . . . . 1 Crushed . | . . . . . . Highest Temperature 499 | . 234 178 117 183 499 Average Temperature 118 | . 97 95 52 82 142 Received Heat Transfer 1383 | . 129 . . 48 1206 Effects 4 | . . . . . 4 Damage (major) 4 | . . . . . 4 Siege Activations . | . . . . . . Robots Corrupted . | . . . . . . Combat Hostiles . | . . . . . . Parts Fried . | . . . . . . Impact Corruptions . | . . . . . . Robots Melted . | . . . . . . Combat Hostiles . | . . . . . . Parts Melted 4 | . 1 . . . 3 Heat Transferred 2447 | . 518 . . 259 1670 Parts Sabotaged . | . . . . . . Parts Stolen . | . . . . . . Parts Stripped . | . . . . . . Power Chain Reactions . | . . . . . . Missiles Intercepted . | . . . . . . Alert | -11 -10 -10 -10 -9 -8 ------- Run | Jun Mat Min Exi Min Mat Peak Influence 218 | . 153 31 . 70 218 Initial 31 | . . 31 . . 27 Average 49 | . 32 31 . 43 97 Maximum Alert Level 1 | . . . . . 1 Low Security (%) 99 | 100 100 100 . 100 98 Level 1 . | . . . . . 1 Level 2 . | . . . . . . Level 3 . | . . . . . . Level 4 . | . . . . . . Level 5 . | . . . . . . High Security . | . . . . . . Max Security . | . . . . . . Squads Dispatched 7 | . . . . . 7 Investigation 2 | . . . . . 2 Extermination . | . . . . . . Reinforcement 2 | . . . . . 2 Assault . | . . . . . . Garrison 3 | . . . . . 3 Intercept . | . . . . . . Searches Triggered . | . . . . . . Construction Impeded 1 | . . . . . 1 Haulers Reinforced . | . . . . . . Active Scanning Responses . | . . . . . . Cargo Convoy Interrupts . | . . . . . . Stealth | -11 -10 -10 -10 -9 -8 --------- Run | Jun Mat Min Exi Min Mat Distress Signals 1 | . . . . . 1 Communications Jammed . | . . . . . . Distress Signals . | . . . . . . Times Spotted 44 | . 11 . . 5 28 Peak Tracking Total 9 | . 2 . . 3 9 Tactical Retreats 4 | . 2 . . . 2 Traps | -11 -10 -10 -10 -9 -8 ------- Run | Jun Mat Min Exi Min Mat Traps Triggered 3 | . 1 . . . 2 Indirectly . | . . . . . . Trap Hack Attempts . | . . . . . . Triggered . | . . . . . . Disarmed . | . . . . . . Reprogrammed . | . . . . . . Reused . | . . . . . . Traps Extracted . | . . . . . . Installed . | . . . . . . Triggered . | . . . . . . Machines | -11 -10 -10 -10 -9 -8 ---------- Run | Jun Mat Min Exi Min Mat Machines Disabled 1 | . . . . . 1 Max in Single Turn 1 | . . . . . 1 Machines Repaired . | . . . . . . Machines Sabotaged . | . . . . . . Overloaded Fab Kills . | . . . . . . Hacking | -11 -10 -10 -10 -9 -8 --------- Run | Jun Mat Min Exi Min Mat Machines Accessed 4 | . 3 . . . 1 Terminals 4 | . 3 . . . 1 Fabricators . | . . . . . . Repair Stations . | . . . . . . Recycling Units . | . . . . . . Scanalyzers . | . . . . . . Garrison Access . | . . . . . . Total Hacks 7 | . 6 . . . 1 Successful 2 | . 2 . . . . Failed 5 | . 4 . . . 1 Catastrophic 2 | . 1 . . . 1 Database Lockouts . | . . . . . . Manual 6 | . 5 . 1 . . Terminals 7 | . 6 . . . 1 Fabricators . | . . . . . . Repair Stations . | . . . . . . Recycling Units . | . . . . . . Scanalyzers . | . . . . . . Garrison Access . | . . . . . . Terminal Hacks 2 | . 2 . . . . Record 1 | . 1 . . . . Branch Access Points 1 | . 1 . . . . Fabricator Hacks . | . . . . . . Repair Station Hacks . | . . . . . . Recycling Unit Hacks . | . . . . . . Scanalyzer . | . . . . . . Garrison Access Hacks . | . . . . . . Unauthorized Hacks . | . . . . . . Terminals . | . . . . . . Fabricators . | . . . . . . Repair Stations . | . . . . . . Recycling Units . | . . . . . . Scanalyzers . | . . . . . . Garrison Access . | . . . . . . Data Cores Recovered . | . . . . . . Used . | . . . . . . Hacking Detections 4 | . 3 . . . 1 Full Trace Events 1 | . 1 . . . . Feedback Events . | . . . . . . Feedback Blocked . | . . . . . . Robot Schematics Acquired . | . . . . . . Robots Built . | . . . . . . Authchips . | . . . . . . Time . | . . . . . . Total Robot Build Rating . | . . . . . . Part Schematics Acquired . | . . . . . . Parts Built . | . . . . . . Authchips . | . . . . . . Time . | . . . . . . Total Part Build Rating . | . . . . . . Parts Repaired . | . . . . . . Time . | . . . . . . Parts Recycled . | . . . . . . Recycled Matter . | . . . . . . Retrieved Matter . | . . . . . . Retrieved Components . | . . . . . . Parts Scanalyzed . | . . . . . . Part Schematics Acquired . | . . . . . . Parts Damaged . | . . . . . . Bothacking | -11 -10 -10 -10 -9 -8 ------------ Run | Jun Mat Min Exi Min Mat Used RIF Installer . | . . . . . . Robots Hacked . | . . . . . . Non-combat . | . . . . . . Combat . | . . . . . . Robot Hacks Applied . | . . . . . . Relay Couplers Released . | . . . . . . Fabnet Peak Effective % . | . . . . . . Robots Rewired . | . . . . . . Allies Hacked . | . . . . . . Hacks Repelled . | . . . . . . Allies | -11 -10 -10 -10 -9 -8 -------- Run | Jun Mat Min Exi Min Mat Total Allies . | . . . . . . Largest Group . | . . . . . . Highest-Rated Group . | . . . . . . Highest-Rated Ally . | . . . . . . Total Orders . | . . . . . . Ally Attacks . | . . . . . . Total Damage . | . . . . . . Kills . | . . . . . . Allies Corrupted . | . . . . . . Allies Melted . | . . . . . . Intel | -11 -10 -10 -10 -9 -8 ------- Run | Jun Mat Min Exi Min Mat Robot Analysis Total . | . . . . . . Derelict Logs Recovered . | . . . . . . Drone Launches . | . . . . . . Drone Recoveries . | . . . . . . Exploration | -11 -10 -10 -10 -9 -8 ------------- Run | Jun Mat Min Exi Min Mat Turns Passed 2620 | 68 781 207 387 667 510 Spaces Moved 1339 | 38 419 126 241 333 182 Core 23 | 19 . . . . 4 Treads 1204 | 19 419 126 241 333 66 Legs 112 | . . . . . 112 Wheels . | . . . . . . Hover . | . . . . . . Flight . | . . . . . . Fastest Speed 50 | 50 160 160 160 160 123 Average Speed 162 | 144 160 160 160 160 183 Slowest Speed 550 | 200 160 160 160 160 550 Overloaded Moves . | . . . . . . Propulsion Burnouts . | . . . . . . Robots Hopped . | . . . . . . Cave-ins Triggered . | . . . . . . Exploration Rate (%) 38 | 4 59 22 63 59 22 Regions Visited 5 Branch Regions 3 Pre-discovered Areas . | . . . . . . Known Exits Taken 1 | . 1 . . . . Unknown Exits Taken 4 | 1 . 1 1 1 . Scrap Searched 3 | . . 1 . 2 . Spaces Dug . | . . . . . . Terrain Destroyed 49 | . . . . . 49 Melee . | . . . . . . Projectile . | . . . . . . AOE 49 | . . . . . 49 Terrain Rammed . | . . . . . . Walls Destroyed . | . . . . . . Machines Disabled . | . . . . . . Actions | -11 -10 -10 -10 -9 -8 --------- Run | Jun Mat Min Exi Min Mat Total 1663 | 51 498 131 243 450 290 Wait 165 | . 35 1 . 105 24 Move 1334 | 37 418 125 240 332 182 Hop . | . . . . . . Pick Up 39 | 8 13 2 2 2 12 Fast Attach 2 | . 1 . . . 1 Attach 24 | 6 1 . . . 17 Detach 1 | . . . . . 1 Swap 7 | . 3 2 . . 2 Drop 14 | . 8 1 1 2 2 Fire 75 | . 18 . . 9 48 Melee . | . . . . . . Ram . | . . . . . . Kick 1 | . . . . . 1 Crush 1 | . 1 . . . . Escape Stasis . | . . . . . . Rewire . | . . . . . . Trap . | . . . . . . Miscellaneous . | . . . . . . Route ------- -11/Junkyard -10/Materials (discovered 2 exits: [*Mat] / *Min) -10/Mines -10/Exiles (discovered 2 exits: [*Min x2]) -9/Mines -8/Materials History --------- Turn | Location | Event 14 | -11/Junkyard | Discovered new exit (range 15) 69 | -11/Junkyard | Entered Materials 139 | -10/Materials | Identified exit to Mines 305 | -10/Materials | Build established: Mutant 606 | -10/Materials | Discovered new exit (range 14) 850 | -10/Materials | Entered Mines 1051 | -10/Mines | Deemed a non-threat by the Exiles lab entrance 1051 | -10/Mines | Discovered new exit (range 5) 1057 | -10/Mines | Entered Exiles 1085 | -10/Exiles | Discovered new exit (range 15) 1104 | -10/Exiles | Met 8R-AWN 1131 | -10/Exiles | Met EX-HEX 1174 | -10/Exiles | Met EX-BIN 1197 | -10/Exiles | Aligned with FarCom system 1198 | -10/Exiles | Given EX-Vault access code 1235 | -10/Exiles | Opened EX-Vault 1245 | -10/Exiles | Found Prototype Device 1282 | -10/Exiles | Warned to stay clear of 0b10 Research branches 1321 | -10/Exiles | Met EX-DEC 1425 | -10/Exiles | Discovered new exit (range 15) 1444 | -10/Exiles | Left Exiles lab with Army-in-a-Box 1444 | -10/Exiles | Entered Mines 2098 | -9/Mines | Discovered new exit (range 9) 2111 | -9/Mines | Entered Materials 2111 | -8/Materials | Evolved 4 slots: Propulsion x1, Utility x3 2190 | -8/Materials | Garrison activated, responded to threat 2285 | -8/Materials | Core integrity fell below 50% 2309 | -8/Materials | Lost 11 parts (2p3n6w) 2565 | -8/Materials | Core integrity fell below 20% 2621 | -8/Materials | Destroyed by G-47 Trooper with Particle Gun Last Messages --------------- 02587_ G-47 Trooper destroyed. 02587_ Destroyed Unknown Device. 02587_ R-06 Scavenger destroyed. 02591_ Aluminum Leg destroyed. 02592_ L-31 Rogue destroyed. 02601_ Destroyed Lgt. Nuclear Core. 02603_ Critical hit (Burn: +37). 02604_ G-47 Trooper destroyed. 02611_ Heat Sink melted. 02611_ Y-45 Defender destroyed. 02612_ K-01 Serf collects debris. 02614_ Overheating: Adv. Treads damaged (-22). 02614_ Overheating: Titanium Leg damaged (-25). 02614_ Overheating: Nuclear Core damaged (-2). 02614_ Overheating: Visual Processing Unit damaged (-9). 02616_ K-01 Serf collects debris. 02617_ Adv. Treads destroyed. 02619_ Particle Gun destroyed. 02620_ K-01 Serf collects debris. 02620_ Kicked K-01 Serf. Map ----- +----------------------------------------------------+ | ?????????????????????????????????????????????????? | | ?????????????????????????????????????????????????? | | ?????????????????????????????????????????????????? | | ?????????????????????????????????????????????????? | | ?????????????????????????????????????????????????? | | ?????????????????????????????????????????????????? | | ?????????????????????????????????????????????????? | | ?????????????????????????????????????????????????? | | ?????????????????????????????????????????????????? | | ?????????????????????????????????????????????????? | | ?????????????????????????????????????????????????? | | ?????????????????????????????????????????????????? | | ???? ??????????????????????????????????????????? | | ??? ??????????????????????????????????????????? | | ??? ?????????????????????????????????????????? | | ??# ##########???????????????????????????????? | | ??# #???????????????????????????????? | | ??? #???????????????????????????????? | | ??? #???????????????????????????????? | | ??? #########???????????????????????? | | ???? ## [ #????????????????w??????? | | ????? ## #???????????????????????? | | ??????? ##""" ##??????????????????????? | | ????????? # %* #??????????????????????? | | ???######### # !! #??????????????????????? | | ???"""""" # =%=%[@#??????????????????????? | | ???"""""" # g # !!%=k#####??????????????????? | | ???"""""" # " =%= ???????????? | | ???""""""%+ u"T ! ???????????? | | ???"""""" # gg ???????????? | | ?? # = #################+?????????????? | | # # #?# #??????????????????????? | | # ####+###### #??????????????????????? | | #+######### + #??????????????????????? | | ??????????# # #??????????????????????? | | ??????????# """ """ # #??????????????????????? | | ??????????# """ """ ## ##??????????????????????? | | ??????????# """ """ ## #???????????????????????? | | ??????????# ## #???????????????????????? | | ??????????# ## #???????????????????????? | | ??????????#! ! ## #???????????????????????? | | ??????????############ #???????????????????????? | | ????????????########## #########???????????????? | | ????????????# # # ???????????????? | | ????????????# """ # # """ """???????????????? | | ????????????# """ # # """ """???????????????? | | ????????????# """ # # """ """ ??????????????? | | ????????????# / + """ """ #?????????????? | | ????????????# """ # # """ """ #?????????????? | | ????????????# """ # # #?????????????? | +----------------------------------------------------+ Best States ------------- Heat Dissipation 31 Energy Generation 14 Energy Capacity 280 Matter Stores 300 Matter Capacity 300 Sight Range 18 Terrain Scan Density 10 Evasion (%) 59 Targeting Accuracy 8 Recoil Reduction 2 Item Schematics ----------------- None Robot Schematics ------------------ None Fabricated ------------ Nothing Alien Tech Used ----------------- None Achievements -------------- None Challenges ------------ None Game ------ Seed ArmoredMetafiberTendrils Manual? 0 Play Time 00:20:18 Cumulative 28.3 hours Start 2023.10.07 @ 15:04:30 End 2023.10.07 @ 15:22:51 Sessions 1 Manual Loads 0 Difficulty Rogue Special Mode None Game No. 55 Rogue 52 Adventurer 3 Explorer 0 Win Type - Total 0 Types 0/0/0/0/0/0/0/0/0 Lore% 22 Gallery% 33 Achievement% 23 Wizard Run 0 Options --------- ASCII 0 Keyboard 0 Movement Mouse Keybinds 0 Fullscreen 2 Font 18/SmallcapsGlow Map View 76x50 Tactical HUD 1 Map Filters NONE Filters NONE Steam 1 RUN: a89af426-6739-4b61-a4c4-528f38e5bd73